{"text_format":"1","workbook":"xlsx","n_sheets":3,"sheets":["Ввод данных","Персональные данные","Движение"],"not_rendered":{"charts":0,"images":0,"macros":1,"external_links":0,"defined_names":0,"comments":0,"pivot_tables":0},"unopened":[],"bounds":{"document_bytes":16777216,"sheet_cells":100000,"rows_first":2000,"rows_last":500,"rows_between":2000,"halvings":0,"cell_chars":16384,"cell_head_chars":4096},"cells_cut":0,"cells_raw":0,"read":"whole","date_system":"1900"}

{"sheet":"Ввод данных","index":0,"n_rows":6,"n_cols":16,"rows_kept":6,"cut":false,"hidden":false,"merged":[[2,12,3,12],[2,13,3,13],[2,14,3,15],[0,0,0,8],[2,8,2,10],[2,11,3,11],[2,4,3,4],[2,0,3,0],[2,1,3,1],[2,2,3,2],[2,3,3,3],[2,6,3,6],[2,7,3,7]]}
["Форма ввода данных"]
[]
["№ ","Дата     выдачи","Срок    выдачи","До даты","№ ТСР","Выдано","Ф.И.О","Дата рождения","Паспортные данные",null,null,"Дата выдачи","Место регистрации","Место проживания","Телефон"]
[null,null,null,null,null,"Возврат",null,null,"серия","номер","кем выдан"]
[]
[2,"2022-02-11",6,"2022-08-11",410100100,"Выдано","Смирнов Виктор Иванович","1988-01-12",101,505642,"ГОВД ","2001-06-15","Россия","Россия",9099090000,3869570318]

{"sheet":"Персональные данные","index":1,"n_rows":4,"n_cols":10,"rows_kept":4,"cut":false,"hidden":false,"merged":[[0,1,0,6],[1,6,2,6],[1,7,2,7],[1,8,2,8],[1,9,2,10],[1,1,2,1],[1,2,2,2],[1,3,1,5],[1,0,2,0]]}
[null,"Персональные данные"]
["№","Ф.И.О","Дата рождения","Паспортные данные",null,null,"Дата выдачи","Место регистрации","Место проживания","Телефон"]
[null,null,null,"серия","номер","кем выдан"]
[1,1]

{"sheet":"Движение","index":2,"n_rows":500,"n_cols":8,"rows_kept":500,"cut":false,"hidden":false,"merged":[[6,7,7,7],[5,0,5,6],[6,0,7,0],[6,1,7,1],[6,2,7,2],[6,3,7,3],[6,4,7,4],[6,6,7,6]]}
[]
[]
[]
[]
[]
["Движение"]
["№ ","Дата     выдачи","Срок    выдачи","Дата возврата","№ ТСР","Выдано","Ф.И.О","Наименование"]
[null,null,null,null,null,"Возврат"]
[1]
[null,null,null,null,null,null,null,{"$f":"IFERROR(INDEX(#REF!,MATCH(E10,#REF!,)),\"\")","v":""}]
[null,null,null,null,null,null,null,{"$f":"IFERROR(INDEX(#REF!,MATCH(E11,#REF!,)),\"\")","v":""}]
[null,null,null,null,null,null,null,{"$f":"IFERROR(INDEX(#REF!,MATCH(E12,#REF!,)),\"\")","v":""}]
[null,null,null,null,null,null,null,{"$f":"IFERROR(INDEX(#REF!,MATCH(E13,#REF!,)),\"\")","v":""}]
[null,null,null,null,null,null,null,{"$f":"IFERROR(INDEX(#REF!,MATCH(E14,#REF!,)),\"\")","v":""}]
[null,null,null,null,null,null,null,{"$f":"IFERROR(INDEX(#REF!,MATCH(E15,#REF!,)),\"\")","v":""}]
[null,null,null,null,null,null,null,{"$f":"IFERROR(INDEX(#REF!,MATCH(E16,#REF!,)),\"\")","v":""}]
[null,null,null,null,null,null,null,{"$f":"IFERROR(INDEX(#REF!,MATCH(E17,#REF!,)),\"\")","v":""}]
[null,null,null,null,null,null,null,{"$f":"IFERROR(INDEX(#REF!,MATCH(E18,#REF!,)),\"\")","v":""}]
[null,null,null,null,null,null,null,{"$f":"IFERROR(INDEX(#REF!,MATCH(E19,#REF!,)),\"\")","v":""}]
[null,null,null,null,null,null,null,{"$f":"IFERROR(INDEX(#REF!,MATCH(E20,#REF!,)),\"\")","v":""}]
[null,null,null,null,null,null,null,{"$f":"IFERROR(INDEX(#REF!,MATCH(E21,#REF!,)),\"\")","v":""}]
[null,null,null,null,null,null,null,{"$f":"IFERROR(INDEX(#REF!,MATCH(E22,#REF!,)),\"\")","v":""}]
[null,null,null,null,null,null,null,{"$f":"IFERROR(INDEX(#REF!,MATCH(E23,#REF!,)),\"\")","v":""}]
[null,null,null,null,null,null,null,{"$f":"IFERROR(INDEX(#REF!,MATCH(E24,#REF!,)),\"\")","v":""}]
[null,null,null,null,null,null,null,{"$f":"IFERROR(INDEX(#REF!,MATCH(E25,#REF!,)),\"\")","v":""}]
[null,null,null,null,null,null,null,{"$f":"IFERROR(INDEX(#REF!,MATCH(E26,#REF!,)),\"\")","v":""}]
[null,null,null,null,null,null,null,{"$f":"IFERROR(INDEX(#REF!,MATCH(E27,#REF!,)),\"\")","v":""}]
[null,null,null,null,null,null,null,{"$f":"IFERROR(INDEX(#REF!,MATCH(E28,#REF!,)),\"\")","v":""}]
[null,null,null,null,null,null,null,{"$f":"IFERROR(INDEX(#REF!,MATCH(E29,#REF!,)),\"\")","v":""}]
[null,null,null,null,null,null,null,{"$f":"IFERROR(INDEX(#REF!,MATCH(E30,#REF!,)),\"\")","v":""}]
[null,null,null,null,null,null,null,{"$f":"IFERROR(INDEX(#REF!,MATCH(E31,#REF!,)),\"\")","v":""}]
[null,null,null,null,null,null,null,{"$f":"IFERROR(INDEX(#REF!,MATCH(E32,#REF!,)),\"\")","v":""}]
[null,null,null,null,null,null,null,{"$f":"IFERROR(INDEX(#REF!,MATCH(E33,#REF!,)),\"\")","v":""}]
[null,null,null,null,null,null,null,{"$f":"IFERROR(INDEX(#REF!,MATCH(E34,#REF!,)),\"\")","v":""}]
[null,null,null,null,null,null,null,{"$f":"IFERROR(INDEX(#REF!,MATCH(E35,#REF!,)),\"\")","v":""}]
[null,null,null,null,null,null,null,{"$f":"IFERROR(INDEX(#REF!,MATCH(E36,#REF!,)),\"\")","v":""}]
[null,null,null,null,null,null,null,{"$f":"IFERROR(INDEX(#REF!,MATCH(E37,#REF!,)),\"\")","v":""}]
[null,null,null,null,null,null,null,{"$f":"IFERROR(INDEX(#REF!,MATCH(E38,#REF!,)),\"\")","v":""}]
[null,null,null,null,null,null,null,{"$f":"IFERROR(INDEX(#REF!,MATCH(E39,#REF!,)),\"\")","v":""}]
[null,null,null,null,null,null,null,{"$f":"IFERROR(INDEX(#REF!,MATCH(E40,#REF!,)),\"\")","v":""}]
[null,null,null,null,null,null,null,{"$f":"IFERROR(INDEX(#REF!,MATCH(E41,#REF!,)),\"\")","v":""}]
[null,null,null,null,null,null,null,{"$f":"IFERROR(INDEX(#REF!,MATCH(E42,#REF!,)),\"\")","v":""}]
[null,null,null,null,null,null,null,{"$f":"IFERROR(INDEX(#REF!,MATCH(E43,#REF!,)),\"\")","v":""}]
[null,null,null,null,null,null,null,{"$f":"IFERROR(INDEX(#REF!,MATCH(E44,#REF!,)),\"\")","v":""}]
[null,null,null,null,null,null,null,{"$f":"IFERROR(INDEX(#REF!,MATCH(E45,#REF!,)),\"\")","v":""}]
[null,null,null,null,null,null,null,{"$f":"IFERROR(INDEX(#REF!,MATCH(E46,#REF!,)),\"\")","v":""}]
[null,null,null,null,null,null,null,{"$f":"IFERROR(INDEX(#REF!,MATCH(E47,#REF!,)),\"\")","v":""}]
[null,null,null,null,null,null,null,{"$f":"IFERROR(INDEX(#REF!,MATCH(E48,#REF!,)),\"\")","v":""}]
[null,null,null,null,null,null,null,{"$f":"IFERROR(INDEX(#REF!,MATCH(E49,#REF!,)),\"\")","v":""}]
[null,null,null,null,null,null,null,{"$f":"IFERROR(INDEX(#REF!,MATCH(E50,#REF!,)),\"\")","v":""}]
[null,null,null,null,null,null,null,{"$f":"IFERROR(INDEX(#REF!,MATCH(E51,#REF!,)),\"\")","v":""}]
[null,null,null,null,null,null,null,{"$f":"IFERROR(INDEX(#REF!,MATCH(E52,#REF!,)),\"\")","v":""}]
[null,null,null,null,null,null,null,{"$f":"IFERROR(INDEX(#REF!,MATCH(E53,#REF!,)),\"\")","v":""}]
[null,null,null,null,null,null,null,{"$f":"IFERROR(INDEX(#REF!,MATCH(E54,#REF!,)),\"\")","v":""}]
[null,null,null,null,null,null,null,{"$f":"IFERROR(INDEX(#REF!,MATCH(E55,#REF!,)),\"\")","v":""}]
[null,null,null,null,null,null,null,{"$f":"IFERROR(INDEX(#REF!,MATCH(E56,#REF!,)),\"\")","v":""}]
[null,null,null,null,null,null,null,{"$f":"IFERROR(INDEX(#REF!,MATCH(E57,#REF!,)),\"\")","v":""}]
[null,null,null,null,null,null,null,{"$f":"IFERROR(INDEX(#REF!,MATCH(E58,#REF!,)),\"\")","v":""}]
[null,null,null,null,null,null,null,{"$f":"IFERROR(INDEX(#REF!,MATCH(E59,#REF!,)),\"\")","v":""}]
[null,null,null,null,null,null,null,{"$f":"IFERROR(INDEX(#REF!,MATCH(E60,#REF!,)),\"\")","v":""}]
[null,null,null,null,null,null,null,{"$f":"IFERROR(INDEX(#REF!,MATCH(E61,#REF!,)),\"\")","v":""}]
[null,null,null,null,null,null,null,{"$f":"IFERROR(INDEX(#REF!,MATCH(E62,#REF!,)),\"\")","v":""}]
[null,null,null,null,null,null,null,{"$f":"IFERROR(INDEX(#REF!,MATCH(E63,#REF!,)),\"\")","v":""}]
[null,null,null,null,null,null,null,{"$f":"IFERROR(INDEX(#REF!,MATCH(E64,#REF!,)),\"\")","v":""}]
[null,null,null,null,null,null,null,{"$f":"IFERROR(INDEX(#REF!,MATCH(E65,#REF!,)),\"\")","v":""}]
[null,null,null,null,null,null,null,{"$f":"IFERROR(INDEX(#REF!,MATCH(E66,#REF!,)),\"\")","v":""}]
[null,null,null,null,null,null,null,{"$f":"IFERROR(INDEX(#REF!,MATCH(E67,#REF!,)),\"\")","v":""}]
[null,null,null,null,null,null,null,{"$f":"IFERROR(INDEX(#REF!,MATCH(E68,#REF!,)),\"\")","v":""}]
[null,null,null,null,null,null,null,{"$f":"IFERROR(INDEX(#REF!,MATCH(E69,#REF!,)),\"\")","v":""}]
[null,null,null,null,null,null,null,{"$f":"IFERROR(INDEX(#REF!,MATCH(E70,#REF!,)),\"\")","v":""}]
[null,null,null,null,null,null,null,{"$f":"IFERROR(INDEX(#REF!,MATCH(E71,#REF!,)),\"\")","v":""}]
[null,null,null,null,null,null,null,{"$f":"IFERROR(INDEX(#REF!,MATCH(E72,#REF!,)),\"\")","v":""}]
[null,null,null,null,null,null,null,{"$f":"IFERROR(INDEX(#REF!,MATCH(E73,#REF!,)),\"\")","v":""}]
[null,null,null,null,null,null,null,{"$f":"IFERROR(INDEX(#REF!,MATCH(E74,#REF!,)),\"\")","v":""}]
[null,null,null,null,null,null,null,{"$f":"IFERROR(INDEX(#REF!,MATCH(E75,#REF!,)),\"\")","v":""}]
[null,null,null,null,null,null,null,{"$f":"IFERROR(INDEX(#REF!,MATCH(E76,#REF!,)),\"\")","v":""}]
[null,null,null,null,null,null,null,{"$f":"IFERROR(INDEX(#REF!,MATCH(E77,#REF!,)),\"\")","v":""}]
[null,null,null,null,null,null,null,{"$f":"IFERROR(INDEX(#REF!,MATCH(E78,#REF!,)),\"\")","v":""}]
[null,null,null,null,null,null,null,{"$f":"IFERROR(INDEX(#REF!,MATCH(E79,#REF!,)),\"\")","v":""}]
[null,null,null,null,null,null,null,{"$f":"IFERROR(INDEX(#REF!,MATCH(E80,#REF!,)),\"\")","v":""}]
[null,null,null,null,null,null,null,{"$f":"IFERROR(INDEX(#REF!,MATCH(E81,#REF!,)),\"\")","v":""}]
[null,null,null,null,null,null,null,{"$f":"IFERROR(INDEX(#REF!,MATCH(E82,#REF!,)),\"\")","v":""}]
[null,null,null,null,null,null,null,{"$f":"IFERROR(INDEX(#REF!,MATCH(E83,#REF!,)),\"\")","v":""}]
[null,null,null,null,null,null,null,{"$f":"IFERROR(INDEX(#REF!,MATCH(E84,#REF!,)),\"\")","v":""}]
[null,null,null,null,null,null,null,{"$f":"IFERROR(INDEX(#REF!,MATCH(E85,#REF!,)),\"\")","v":""}]
[null,null,null,null,null,null,null,{"$f":"IFERROR(INDEX(#REF!,MATCH(E86,#REF!,)),\"\")","v":""}]
[null,null,null,null,null,null,null,{"$f":"IFERROR(INDEX(#REF!,MATCH(E87,#REF!,)),\"\")","v":""}]
[null,null,null,null,null,null,null,{"$f":"IFERROR(INDEX(#REF!,MATCH(E88,#REF!,)),\"\")","v":""}]
[null,null,null,null,null,null,null,{"$f":"IFERROR(INDEX(#REF!,MATCH(E89,#REF!,)),\"\")","v":""}]
[null,null,null,null,null,null,null,{"$f":"IFERROR(INDEX(#REF!,MATCH(E90,#REF!,)),\"\")","v":""}]
[null,null,null,null,null,null,null,{"$f":"IFERROR(INDEX(#REF!,MATCH(E91,#REF!,)),\"\")","v":""}]
[null,null,null,null,null,null,null,{"$f":"IFERROR(INDEX(#REF!,MATCH(E92,#REF!,)),\"\")","v":""}]
[null,null,null,null,null,null,null,{"$f":"IFERROR(INDEX(#REF!,MATCH(E93,#REF!,)),\"\")","v":""}]
[null,null,null,null,null,null,null,{"$f":"IFERROR(INDEX(#REF!,MATCH(E94,#REF!,)),\"\")","v":""}]
[null,null,null,null,null,null,null,{"$f":"IFERROR(INDEX(#REF!,MATCH(E95,#REF!,)),\"\")","v":""}]
[null,null,null,null,null,null,null,{"$f":"IFERROR(INDEX(#REF!,MATCH(E96,#REF!,)),\"\")","v":""}]
[null,null,null,null,null,null,null,{"$f":"IFERROR(INDEX(#REF!,MATCH(E97,#REF!,)),\"\")","v":""}]
[null,null,null,null,null,null,null,{"$f":"IFERROR(INDEX(#REF!,MATCH(E98,#REF!,)),\"\")","v":""}]
[null,null,null,null,null,null,null,{"$f":"IFERROR(INDEX(#REF!,MATCH(E99,#REF!,)),\"\")","v":""}]
[null,null,null,null,null,null,null,{"$f":"IFERROR(INDEX(#REF!,MATCH(E100,#REF!,)),\"\")","v":""}]
[null,null,null,null,null,null,null,{"$f":"IFERROR(INDEX(#REF!,MATCH(E101,#REF!,)),\"\")","v":""}]
[null,null,null,null,null,null,null,{"$f":"IFERROR(INDEX(#REF!,MATCH(E102,#REF!,)),\"\")","v":""}]
[null,null,null,null,null,null,null,{"$f":"IFERROR(INDEX(#REF!,MATCH(E103,#REF!,)),\"\")","v":""}]
[null,null,null,null,null,null,null,{"$f":"IFERROR(INDEX(#REF!,MATCH(E104,#REF!,)),\"\")","v":""}]
[null,null,null,null,null,null,null,{"$f":"IFERROR(INDEX(#REF!,MATCH(E105,#REF!,)),\"\")","v":""}]
[null,null,null,null,null,null,null,{"$f":"IFERROR(INDEX(#REF!,MATCH(E106,#REF!,)),\"\")","v":""}]
[null,null,null,null,null,null,null,{"$f":"IFERROR(INDEX(#REF!,MATCH(E107,#REF!,)),\"\")","v":""}]
[null,null,null,null,null,null,null,{"$f":"IFERROR(INDEX(#REF!,MATCH(E108,#REF!,)),\"\")","v":""}]
[null,null,null,null,null,null,null,{"$f":"IFERROR(INDEX(#REF!,MATCH(E109,#REF!,)),\"\")","v":""}]
[null,null,null,null,null,null,null,{"$f":"IFERROR(INDEX(#REF!,MATCH(E110,#REF!,)),\"\")","v":""}]
[null,null,null,null,null,null,null,{"$f":"IFERROR(INDEX(#REF!,MATCH(E111,#REF!,)),\"\")","v":""}]
[null,null,null,null,null,null,null,{"$f":"IFERROR(INDEX(#REF!,MATCH(E112,#REF!,)),\"\")","v":""}]
[null,null,null,null,null,null,null,{"$f":"IFERROR(INDEX(#REF!,MATCH(E113,#REF!,)),\"\")","v":""}]
[null,null,null,null,null,null,null,{"$f":"IFERROR(INDEX(#REF!,MATCH(E114,#REF!,)),\"\")","v":""}]
[null,null,null,null,null,null,null,{"$f":"IFERROR(INDEX(#REF!,MATCH(E115,#REF!,)),\"\")","v":""}]
[null,null,null,null,null,null,null,{"$f":"IFERROR(INDEX(#REF!,MATCH(E116,#REF!,)),\"\")","v":""}]
[null,null,null,null,null,null,null,{"$f":"IFERROR(INDEX(#REF!,MATCH(E117,#REF!,)),\"\")","v":""}]
[null,null,null,null,null,null,null,{"$f":"IFERROR(INDEX(#REF!,MATCH(E118,#REF!,)),\"\")","v":""}]
[null,null,null,null,null,null,null,{"$f":"IFERROR(INDEX(#REF!,MATCH(E119,#REF!,)),\"\")","v":""}]
[null,null,null,null,null,null,null,{"$f":"IFERROR(INDEX(#REF!,MATCH(E120,#REF!,)),\"\")","v":""}]
[null,null,null,null,null,null,null,{"$f":"IFERROR(INDEX(#REF!,MATCH(E121,#REF!,)),\"\")","v":""}]
[null,null,null,null,null,null,null,{"$f":"IFERROR(INDEX(#REF!,MATCH(E122,#REF!,)),\"\")","v":""}]
[null,null,null,null,null,null,null,{"$f":"IFERROR(INDEX(#REF!,MATCH(E123,#REF!,)),\"\")","v":""}]
[null,null,null,null,null,null,null,{"$f":"IFERROR(INDEX(#REF!,MATCH(E124,#REF!,)),\"\")","v":""}]
[null,null,null,null,null,null,null,{"$f":"IFERROR(INDEX(#REF!,MATCH(E125,#REF!,)),\"\")","v":""}]
[null,null,null,null,null,null,null,{"$f":"IFERROR(INDEX(#REF!,MATCH(E126,#REF!,)),\"\")","v":""}]
[null,null,null,null,null,null,null,{"$f":"IFERROR(INDEX(#REF!,MATCH(E127,#REF!,)),\"\")","v":""}]
[null,null,null,null,null,null,null,{"$f":"IFERROR(INDEX(#REF!,MATCH(E128,#REF!,)),\"\")","v":""}]
[null,null,null,null,null,null,null,{"$f":"IFERROR(INDEX(#REF!,MATCH(E129,#REF!,)),\"\")","v":""}]
[null,null,null,null,null,null,null,{"$f":"IFERROR(INDEX(#REF!,MATCH(E130,#REF!,)),\"\")","v":""}]
[null,null,null,null,null,null,null,{"$f":"IFERROR(INDEX(#REF!,MATCH(E131,#REF!,)),\"\")","v":""}]
[null,null,null,null,null,null,null,{"$f":"IFERROR(INDEX(#REF!,MATCH(E132,#REF!,)),\"\")","v":""}]
[null,null,null,null,null,null,null,{"$f":"IFERROR(INDEX(#REF!,MATCH(E133,#REF!,)),\"\")","v":""}]
[null,null,null,null,null,null,null,{"$f":"IFERROR(INDEX(#REF!,MATCH(E134,#REF!,)),\"\")","v":""}]
[null,null,null,null,null,null,null,{"$f":"IFERROR(INDEX(#REF!,MATCH(E135,#REF!,)),\"\")","v":""}]
[null,null,null,null,null,null,null,{"$f":"IFERROR(INDEX(#REF!,MATCH(E136,#REF!,)),\"\")","v":""}]
[null,null,null,null,null,null,null,{"$f":"IFERROR(INDEX(#REF!,MATCH(E137,#REF!,)),\"\")","v":""}]
[null,null,null,null,null,null,null,{"$f":"IFERROR(INDEX(#REF!,MATCH(E138,#REF!,)),\"\")","v":""}]
[null,null,null,null,null,null,null,{"$f":"IFERROR(INDEX(#REF!,MATCH(E139,#REF!,)),\"\")","v":""}]
[null,null,null,null,null,null,null,{"$f":"IFERROR(INDEX(#REF!,MATCH(E140,#REF!,)),\"\")","v":""}]
[null,null,null,null,null,null,null,{"$f":"IFERROR(INDEX(#REF!,MATCH(E141,#REF!,)),\"\")","v":""}]
[null,null,null,null,null,null,null,{"$f":"IFERROR(INDEX(#REF!,MATCH(E142,#REF!,)),\"\")","v":""}]
[null,null,null,null,null,null,null,{"$f":"IFERROR(INDEX(#REF!,MATCH(E143,#REF!,)),\"\")","v":""}]
[null,null,null,null,null,null,null,{"$f":"IFERROR(INDEX(#REF!,MATCH(E144,#REF!,)),\"\")","v":""}]
[null,null,null,null,null,null,null,{"$f":"IFERROR(INDEX(#REF!,MATCH(E145,#REF!,)),\"\")","v":""}]
[null,null,null,null,null,null,null,{"$f":"IFERROR(INDEX(#REF!,MATCH(E146,#REF!,)),\"\")","v":""}]
[null,null,null,null,null,null,null,{"$f":"IFERROR(INDEX(#REF!,MATCH(E147,#REF!,)),\"\")","v":""}]
[null,null,null,null,null,null,null,{"$f":"IFERROR(INDEX(#REF!,MATCH(E148,#REF!,)),\"\")","v":""}]
[null,null,null,null,null,null,null,{"$f":"IFERROR(INDEX(#REF!,MATCH(E149,#REF!,)),\"\")","v":""}]
[null,null,null,null,null,null,null,{"$f":"IFERROR(INDEX(#REF!,MATCH(E150,#REF!,)),\"\")","v":""}]
[null,null,null,null,null,null,null,{"$f":"IFERROR(INDEX(#REF!,MATCH(E151,#REF!,)),\"\")","v":""}]
[null,null,null,null,null,null,null,{"$f":"IFERROR(INDEX(#REF!,MATCH(E152,#REF!,)),\"\")","v":""}]
[null,null,null,null,null,null,null,{"$f":"IFERROR(INDEX(#REF!,MATCH(E153,#REF!,)),\"\")","v":""}]
[null,null,null,null,null,null,null,{"$f":"IFERROR(INDEX(#REF!,MATCH(E154,#REF!,)),\"\")","v":""}]
[null,null,null,null,null,null,null,{"$f":"IFERROR(INDEX(#REF!,MATCH(E155,#REF!,)),\"\")","v":""}]
[null,null,null,null,null,null,null,{"$f":"IFERROR(INDEX(#REF!,MATCH(E156,#REF!,)),\"\")","v":""}]
[null,null,null,null,null,null,null,{"$f":"IFERROR(INDEX(#REF!,MATCH(E157,#REF!,)),\"\")","v":""}]
[null,null,null,null,null,null,null,{"$f":"IFERROR(INDEX(#REF!,MATCH(E158,#REF!,)),\"\")","v":""}]
[null,null,null,null,null,null,null,{"$f":"IFERROR(INDEX(#REF!,MATCH(E159,#REF!,)),\"\")","v":""}]
[null,null,null,null,null,null,null,{"$f":"IFERROR(INDEX(#REF!,MATCH(E160,#REF!,)),\"\")","v":""}]
[null,null,null,null,null,null,null,{"$f":"IFERROR(INDEX(#REF!,MATCH(E161,#REF!,)),\"\")","v":""}]
[null,null,null,null,null,null,null,{"$f":"IFERROR(INDEX(#REF!,MATCH(E162,#REF!,)),\"\")","v":""}]
[null,null,null,null,null,null,null,{"$f":"IFERROR(INDEX(#REF!,MATCH(E163,#REF!,)),\"\")","v":""}]
[null,null,null,null,null,null,null,{"$f":"IFERROR(INDEX(#REF!,MATCH(E164,#REF!,)),\"\")","v":""}]
[null,null,null,null,null,null,null,{"$f":"IFERROR(INDEX(#REF!,MATCH(E165,#REF!,)),\"\")","v":""}]
[null,null,null,null,null,null,null,{"$f":"IFERROR(INDEX(#REF!,MATCH(E166,#REF!,)),\"\")","v":""}]
[null,null,null,null,null,null,null,{"$f":"IFERROR(INDEX(#REF!,MATCH(E167,#REF!,)),\"\")","v":""}]
[null,null,null,null,null,null,null,{"$f":"IFERROR(INDEX(#REF!,MATCH(E168,#REF!,)),\"\")","v":""}]
[null,null,null,null,null,null,null,{"$f":"IFERROR(INDEX(#REF!,MATCH(E169,#REF!,)),\"\")","v":""}]
[null,null,null,null,null,null,null,{"$f":"IFERROR(INDEX(#REF!,MATCH(E170,#REF!,)),\"\")","v":""}]
[null,null,null,null,null,null,null,{"$f":"IFERROR(INDEX(#REF!,MATCH(E171,#REF!,)),\"\")","v":""}]
[null,null,null,null,null,null,null,{"$f":"IFERROR(INDEX(#REF!,MATCH(E172,#REF!,)),\"\")","v":""}]
[null,null,null,null,null,null,null,{"$f":"IFERROR(INDEX(#REF!,MATCH(E173,#REF!,)),\"\")","v":""}]
[null,null,null,null,null,null,null,{"$f":"IFERROR(INDEX(#REF!,MATCH(E174,#REF!,)),\"\")","v":""}]
[null,null,null,null,null,null,null,{"$f":"IFERROR(INDEX(#REF!,MATCH(E175,#REF!,)),\"\")","v":""}]
[null,null,null,null,null,null,null,{"$f":"IFERROR(INDEX(#REF!,MATCH(E176,#REF!,)),\"\")","v":""}]
[null,null,null,null,null,null,null,{"$f":"IFERROR(INDEX(#REF!,MATCH(E177,#REF!,)),\"\")","v":""}]
[null,null,null,null,null,null,null,{"$f":"IFERROR(INDEX(#REF!,MATCH(E178,#REF!,)),\"\")","v":""}]
[null,null,null,null,null,null,null,{"$f":"IFERROR(INDEX(#REF!,MATCH(E179,#REF!,)),\"\")","v":""}]
[null,null,null,null,null,null,null,{"$f":"IFERROR(INDEX(#REF!,MATCH(E180,#REF!,)),\"\")","v":""}]
[null,null,null,null,null,null,null,{"$f":"IFERROR(INDEX(#REF!,MATCH(E181,#REF!,)),\"\")","v":""}]
[null,null,null,null,null,null,null,{"$f":"IFERROR(INDEX(#REF!,MATCH(E182,#REF!,)),\"\")","v":""}]
[null,null,null,null,null,null,null,{"$f":"IFERROR(INDEX(#REF!,MATCH(E183,#REF!,)),\"\")","v":""}]
[null,null,null,null,null,null,null,{"$f":"IFERROR(INDEX(#REF!,MATCH(E184,#REF!,)),\"\")","v":""}]
[null,null,null,null,null,null,null,{"$f":"IFERROR(INDEX(#REF!,MATCH(E185,#REF!,)),\"\")","v":""}]
[null,null,null,null,null,null,null,{"$f":"IFERROR(INDEX(#REF!,MATCH(E186,#REF!,)),\"\")","v":""}]
[null,null,null,null,null,null,null,{"$f":"IFERROR(INDEX(#REF!,MATCH(E187,#REF!,)),\"\")","v":""}]
[null,null,null,null,null,null,null,{"$f":"IFERROR(INDEX(#REF!,MATCH(E188,#REF!,)),\"\")","v":""}]
[null,null,null,null,null,null,null,{"$f":"IFERROR(INDEX(#REF!,MATCH(E189,#REF!,)),\"\")","v":""}]
[null,null,null,null,null,null,null,{"$f":"IFERROR(INDEX(#REF!,MATCH(E190,#REF!,)),\"\")","v":""}]
[null,null,null,null,null,null,null,{"$f":"IFERROR(INDEX(#REF!,MATCH(E191,#REF!,)),\"\")","v":""}]
[null,null,null,null,null,null,null,{"$f":"IFERROR(INDEX(#REF!,MATCH(E192,#REF!,)),\"\")","v":""}]
[null,null,null,null,null,null,null,{"$f":"IFERROR(INDEX(#REF!,MATCH(E193,#REF!,)),\"\")","v":""}]
[null,null,null,null,null,null,null,{"$f":"IFERROR(INDEX(#REF!,MATCH(E194,#REF!,)),\"\")","v":""}]
[null,null,null,null,null,null,null,{"$f":"IFERROR(INDEX(#REF!,MATCH(E195,#REF!,)),\"\")","v":""}]
[null,null,null,null,null,null,null,{"$f":"IFERROR(INDEX(#REF!,MATCH(E196,#REF!,)),\"\")","v":""}]
[null,null,null,null,null,null,null,{"$f":"IFERROR(INDEX(#REF!,MATCH(E197,#REF!,)),\"\")","v":""}]
[null,null,null,null,null,null,null,{"$f":"IFERROR(INDEX(#REF!,MATCH(E198,#REF!,)),\"\")","v":""}]
[null,null,null,null,null,null,null,{"$f":"IFERROR(INDEX(#REF!,MATCH(E199,#REF!,)),\"\")","v":""}]
[null,null,null,null,null,null,null,{"$f":"IFERROR(INDEX(#REF!,MATCH(E200,#REF!,)),\"\")","v":""}]
[null,null,null,null,null,null,null,{"$f":"IFERROR(INDEX(#REF!,MATCH(E201,#REF!,)),\"\")","v":""}]
[null,null,null,null,null,null,null,{"$f":"IFERROR(INDEX(#REF!,MATCH(E202,#REF!,)),\"\")","v":""}]
[null,null,null,null,null,null,null,{"$f":"IFERROR(INDEX(#REF!,MATCH(E203,#REF!,)),\"\")","v":""}]
[null,null,null,null,null,null,null,{"$f":"IFERROR(INDEX(#REF!,MATCH(E204,#REF!,)),\"\")","v":""}]
[null,null,null,null,null,null,null,{"$f":"IFERROR(INDEX(#REF!,MATCH(E205,#REF!,)),\"\")","v":""}]
[null,null,null,null,null,null,null,{"$f":"IFERROR(INDEX(#REF!,MATCH(E206,#REF!,)),\"\")","v":""}]
[null,null,null,null,null,null,null,{"$f":"IFERROR(INDEX(#REF!,MATCH(E207,#REF!,)),\"\")","v":""}]
[null,null,null,null,null,null,null,{"$f":"IFERROR(INDEX(#REF!,MATCH(E208,#REF!,)),\"\")","v":""}]
[null,null,null,null,null,null,null,{"$f":"IFERROR(INDEX(#REF!,MATCH(E209,#REF!,)),\"\")","v":""}]
[null,null,null,null,null,null,null,{"$f":"IFERROR(INDEX(#REF!,MATCH(E210,#REF!,)),\"\")","v":""}]
[null,null,null,null,null,null,null,{"$f":"IFERROR(INDEX(#REF!,MATCH(E211,#REF!,)),\"\")","v":""}]
[null,null,null,null,null,null,null,{"$f":"IFERROR(INDEX(#REF!,MATCH(E212,#REF!,)),\"\")","v":""}]
[null,null,null,null,null,null,null,{"$f":"IFERROR(INDEX(#REF!,MATCH(E213,#REF!,)),\"\")","v":""}]
[null,null,null,null,null,null,null,{"$f":"IFERROR(INDEX(#REF!,MATCH(E214,#REF!,)),\"\")","v":""}]
[null,null,null,null,null,null,null,{"$f":"IFERROR(INDEX(#REF!,MATCH(E215,#REF!,)),\"\")","v":""}]
[null,null,null,null,null,null,null,{"$f":"IFERROR(INDEX(#REF!,MATCH(E216,#REF!,)),\"\")","v":""}]
[null,null,null,null,null,null,null,{"$f":"IFERROR(INDEX(#REF!,MATCH(E217,#REF!,)),\"\")","v":""}]
[null,null,null,null,null,null,null,{"$f":"IFERROR(INDEX(#REF!,MATCH(E218,#REF!,)),\"\")","v":""}]
[null,null,null,null,null,null,null,{"$f":"IFERROR(INDEX(#REF!,MATCH(E219,#REF!,)),\"\")","v":""}]
[null,null,null,null,null,null,null,{"$f":"IFERROR(INDEX(#REF!,MATCH(E220,#REF!,)),\"\")","v":""}]
[null,null,null,null,null,null,null,{"$f":"IFERROR(INDEX(#REF!,MATCH(E221,#REF!,)),\"\")","v":""}]
[null,null,null,null,null,null,null,{"$f":"IFERROR(INDEX(#REF!,MATCH(E222,#REF!,)),\"\")","v":""}]
[null,null,null,null,null,null,null,{"$f":"IFERROR(INDEX(#REF!,MATCH(E223,#REF!,)),\"\")","v":""}]
[null,null,null,null,null,null,null,{"$f":"IFERROR(INDEX(#REF!,MATCH(E224,#REF!,)),\"\")","v":""}]
[null,null,null,null,null,null,null,{"$f":"IFERROR(INDEX(#REF!,MATCH(E225,#REF!,)),\"\")","v":""}]
[null,null,null,null,null,null,null,{"$f":"IFERROR(INDEX(#REF!,MATCH(E226,#REF!,)),\"\")","v":""}]
[null,null,null,null,null,null,null,{"$f":"IFERROR(INDEX(#REF!,MATCH(E227,#REF!,)),\"\")","v":""}]
[null,null,null,null,null,null,null,{"$f":"IFERROR(INDEX(#REF!,MATCH(E228,#REF!,)),\"\")","v":""}]
[null,null,null,null,null,null,null,{"$f":"IFERROR(INDEX(#REF!,MATCH(E229,#REF!,)),\"\")","v":""}]
[null,null,null,null,null,null,null,{"$f":"IFERROR(INDEX(#REF!,MATCH(E230,#REF!,)),\"\")","v":""}]
[null,null,null,null,null,null,null,{"$f":"IFERROR(INDEX(#REF!,MATCH(E231,#REF!,)),\"\")","v":""}]
[null,null,null,null,null,null,null,{"$f":"IFERROR(INDEX(#REF!,MATCH(E232,#REF!,)),\"\")","v":""}]
[null,null,null,null,null,null,null,{"$f":"IFERROR(INDEX(#REF!,MATCH(E233,#REF!,)),\"\")","v":""}]
[null,null,null,null,null,null,null,{"$f":"IFERROR(INDEX(#REF!,MATCH(E234,#REF!,)),\"\")","v":""}]
[null,null,null,null,null,null,null,{"$f":"IFERROR(INDEX(#REF!,MATCH(E235,#REF!,)),\"\")","v":""}]
[null,null,null,null,null,null,null,{"$f":"IFERROR(INDEX(#REF!,MATCH(E236,#REF!,)),\"\")","v":""}]
[null,null,null,null,null,null,null,{"$f":"IFERROR(INDEX(#REF!,MATCH(E237,#REF!,)),\"\")","v":""}]
[null,null,null,null,null,null,null,{"$f":"IFERROR(INDEX(#REF!,MATCH(E238,#REF!,)),\"\")","v":""}]
[null,null,null,null,null,null,null,{"$f":"IFERROR(INDEX(#REF!,MATCH(E239,#REF!,)),\"\")","v":""}]
[null,null,null,null,null,null,null,{"$f":"IFERROR(INDEX(#REF!,MATCH(E240,#REF!,)),\"\")","v":""}]
[null,null,null,null,null,null,null,{"$f":"IFERROR(INDEX(#REF!,MATCH(E241,#REF!,)),\"\")","v":""}]
[null,null,null,null,null,null,null,{"$f":"IFERROR(INDEX(#REF!,MATCH(E242,#REF!,)),\"\")","v":""}]
[null,null,null,null,null,null,null,{"$f":"IFERROR(INDEX(#REF!,MATCH(E243,#REF!,)),\"\")","v":""}]
[null,null,null,null,null,null,null,{"$f":"IFERROR(INDEX(#REF!,MATCH(E244,#REF!,)),\"\")","v":""}]
[null,null,null,null,null,null,null,{"$f":"IFERROR(INDEX(#REF!,MATCH(E245,#REF!,)),\"\")","v":""}]
[null,null,null,null,null,null,null,{"$f":"IFERROR(INDEX(#REF!,MATCH(E246,#REF!,)),\"\")","v":""}]
[null,null,null,null,null,null,null,{"$f":"IFERROR(INDEX(#REF!,MATCH(E247,#REF!,)),\"\")","v":""}]
[null,null,null,null,null,null,null,{"$f":"IFERROR(INDEX(#REF!,MATCH(E248,#REF!,)),\"\")","v":""}]
[null,null,null,null,null,null,null,{"$f":"IFERROR(INDEX(#REF!,MATCH(E249,#REF!,)),\"\")","v":""}]
[null,null,null,null,null,null,null,{"$f":"IFERROR(INDEX(#REF!,MATCH(E250,#REF!,)),\"\")","v":""}]
[null,null,null,null,null,null,null,{"$f":"IFERROR(INDEX(#REF!,MATCH(E251,#REF!,)),\"\")","v":""}]
[null,null,null,null,null,null,null,{"$f":"IFERROR(INDEX(#REF!,MATCH(E252,#REF!,)),\"\")","v":""}]
[null,null,null,null,null,null,null,{"$f":"IFERROR(INDEX(#REF!,MATCH(E253,#REF!,)),\"\")","v":""}]
[null,null,null,null,null,null,null,{"$f":"IFERROR(INDEX(#REF!,MATCH(E254,#REF!,)),\"\")","v":""}]
[null,null,null,null,null,null,null,{"$f":"IFERROR(INDEX(#REF!,MATCH(E255,#REF!,)),\"\")","v":""}]
[null,null,null,null,null,null,null,{"$f":"IFERROR(INDEX(#REF!,MATCH(E256,#REF!,)),\"\")","v":""}]
[null,null,null,null,null,null,null,{"$f":"IFERROR(INDEX(#REF!,MATCH(E257,#REF!,)),\"\")","v":""}]
[null,null,null,null,null,null,null,{"$f":"IFERROR(INDEX(#REF!,MATCH(E258,#REF!,)),\"\")","v":""}]
[null,null,null,null,null,null,null,{"$f":"IFERROR(INDEX(#REF!,MATCH(E259,#REF!,)),\"\")","v":""}]
[null,null,null,null,null,null,null,{"$f":"IFERROR(INDEX(#REF!,MATCH(E260,#REF!,)),\"\")","v":""}]
[null,null,null,null,null,null,null,{"$f":"IFERROR(INDEX(#REF!,MATCH(E261,#REF!,)),\"\")","v":""}]
[null,null,null,null,null,null,null,{"$f":"IFERROR(INDEX(#REF!,MATCH(E262,#REF!,)),\"\")","v":""}]
[null,null,null,null,null,null,null,{"$f":"IFERROR(INDEX(#REF!,MATCH(E263,#REF!,)),\"\")","v":""}]
[null,null,null,null,null,null,null,{"$f":"IFERROR(INDEX(#REF!,MATCH(E264,#REF!,)),\"\")","v":""}]
[null,null,null,null,null,null,null,{"$f":"IFERROR(INDEX(#REF!,MATCH(E265,#REF!,)),\"\")","v":""}]
[null,null,null,null,null,null,null,{"$f":"IFERROR(INDEX(#REF!,MATCH(E266,#REF!,)),\"\")","v":""}]
[null,null,null,null,null,null,null,{"$f":"IFERROR(INDEX(#REF!,MATCH(E267,#REF!,)),\"\")","v":""}]
[null,null,null,null,null,null,null,{"$f":"IFERROR(INDEX(#REF!,MATCH(E268,#REF!,)),\"\")","v":""}]
[null,null,null,null,null,null,null,{"$f":"IFERROR(INDEX(#REF!,MATCH(E269,#REF!,)),\"\")","v":""}]
[null,null,null,null,null,null,null,{"$f":"IFERROR(INDEX(#REF!,MATCH(E270,#REF!,)),\"\")","v":""}]
[null,null,null,null,null,null,null,{"$f":"IFERROR(INDEX(#REF!,MATCH(E271,#REF!,)),\"\")","v":""}]
[null,null,null,null,null,null,null,{"$f":"IFERROR(INDEX(#REF!,MATCH(E272,#REF!,)),\"\")","v":""}]
[null,null,null,null,null,null,null,{"$f":"IFERROR(INDEX(#REF!,MATCH(E273,#REF!,)),\"\")","v":""}]
[null,null,null,null,null,null,null,{"$f":"IFERROR(INDEX(#REF!,MATCH(E274,#REF!,)),\"\")","v":""}]
[null,null,null,null,null,null,null,{"$f":"IFERROR(INDEX(#REF!,MATCH(E275,#REF!,)),\"\")","v":""}]
[null,null,null,null,null,null,null,{"$f":"IFERROR(INDEX(#REF!,MATCH(E276,#REF!,)),\"\")","v":""}]
[null,null,null,null,null,null,null,{"$f":"IFERROR(INDEX(#REF!,MATCH(E277,#REF!,)),\"\")","v":""}]
[null,null,null,null,null,null,null,{"$f":"IFERROR(INDEX(#REF!,MATCH(E278,#REF!,)),\"\")","v":""}]
[null,null,null,null,null,null,null,{"$f":"IFERROR(INDEX(#REF!,MATCH(E279,#REF!,)),\"\")","v":""}]
[null,null,null,null,null,null,null,{"$f":"IFERROR(INDEX(#REF!,MATCH(E280,#REF!,)),\"\")","v":""}]
[null,null,null,null,null,null,null,{"$f":"IFERROR(INDEX(#REF!,MATCH(E281,#REF!,)),\"\")","v":""}]
[null,null,null,null,null,null,null,{"$f":"IFERROR(INDEX(#REF!,MATCH(E282,#REF!,)),\"\")","v":""}]
[null,null,null,null,null,null,null,{"$f":"IFERROR(INDEX(#REF!,MATCH(E283,#REF!,)),\"\")","v":""}]
[null,null,null,null,null,null,null,{"$f":"IFERROR(INDEX(#REF!,MATCH(E284,#REF!,)),\"\")","v":""}]
[null,null,null,null,null,null,null,{"$f":"IFERROR(INDEX(#REF!,MATCH(E285,#REF!,)),\"\")","v":""}]
[null,null,null,null,null,null,null,{"$f":"IFERROR(INDEX(#REF!,MATCH(E286,#REF!,)),\"\")","v":""}]
[null,null,null,null,null,null,null,{"$f":"IFERROR(INDEX(#REF!,MATCH(E287,#REF!,)),\"\")","v":""}]
[null,null,null,null,null,null,null,{"$f":"IFERROR(INDEX(#REF!,MATCH(E288,#REF!,)),\"\")","v":""}]
[null,null,null,null,null,null,null,{"$f":"IFERROR(INDEX(#REF!,MATCH(E289,#REF!,)),\"\")","v":""}]
[null,null,null,null,null,null,null,{"$f":"IFERROR(INDEX(#REF!,MATCH(E290,#REF!,)),\"\")","v":""}]
[null,null,null,null,null,null,null,{"$f":"IFERROR(INDEX(#REF!,MATCH(E291,#REF!,)),\"\")","v":""}]
[null,null,null,null,null,null,null,{"$f":"IFERROR(INDEX(#REF!,MATCH(E292,#REF!,)),\"\")","v":""}]
[null,null,null,null,null,null,null,{"$f":"IFERROR(INDEX(#REF!,MATCH(E293,#REF!,)),\"\")","v":""}]
[null,null,null,null,null,null,null,{"$f":"IFERROR(INDEX(#REF!,MATCH(E294,#REF!,)),\"\")","v":""}]
[null,null,null,null,null,null,null,{"$f":"IFERROR(INDEX(#REF!,MATCH(E295,#REF!,)),\"\")","v":""}]
[null,null,null,null,null,null,null,{"$f":"IFERROR(INDEX(#REF!,MATCH(E296,#REF!,)),\"\")","v":""}]
[null,null,null,null,null,null,null,{"$f":"IFERROR(INDEX(#REF!,MATCH(E297,#REF!,)),\"\")","v":""}]
[null,null,null,null,null,null,null,{"$f":"IFERROR(INDEX(#REF!,MATCH(E298,#REF!,)),\"\")","v":""}]
[null,null,null,null,null,null,null,{"$f":"IFERROR(INDEX(#REF!,MATCH(E299,#REF!,)),\"\")","v":""}]
[null,null,null,null,null,null,null,{"$f":"IFERROR(INDEX(#REF!,MATCH(E300,#REF!,)),\"\")","v":""}]
[null,null,null,null,null,null,null,{"$f":"IFERROR(INDEX(#REF!,MATCH(E301,#REF!,)),\"\")","v":""}]
[null,null,null,null,null,null,null,{"$f":"IFERROR(INDEX(#REF!,MATCH(E302,#REF!,)),\"\")","v":""}]
[null,null,null,null,null,null,null,{"$f":"IFERROR(INDEX(#REF!,MATCH(E303,#REF!,)),\"\")","v":""}]
[null,null,null,null,null,null,null,{"$f":"IFERROR(INDEX(#REF!,MATCH(E304,#REF!,)),\"\")","v":""}]
[null,null,null,null,null,null,null,{"$f":"IFERROR(INDEX(#REF!,MATCH(E305,#REF!,)),\"\")","v":""}]
[null,null,null,null,null,null,null,{"$f":"IFERROR(INDEX(#REF!,MATCH(E306,#REF!,)),\"\")","v":""}]
[null,null,null,null,null,null,null,{"$f":"IFERROR(INDEX(#REF!,MATCH(E307,#REF!,)),\"\")","v":""}]
[null,null,null,null,null,null,null,{"$f":"IFERROR(INDEX(#REF!,MATCH(E308,#REF!,)),\"\")","v":""}]
[null,null,null,null,null,null,null,{"$f":"IFERROR(INDEX(#REF!,MATCH(E309,#REF!,)),\"\")","v":""}]
[null,null,null,null,null,null,null,{"$f":"IFERROR(INDEX(#REF!,MATCH(E310,#REF!,)),\"\")","v":""}]
[null,null,null,null,null,null,null,{"$f":"IFERROR(INDEX(#REF!,MATCH(E311,#REF!,)),\"\")","v":""}]
[null,null,null,null,null,null,null,{"$f":"IFERROR(INDEX(#REF!,MATCH(E312,#REF!,)),\"\")","v":""}]
[null,null,null,null,null,null,null,{"$f":"IFERROR(INDEX(#REF!,MATCH(E313,#REF!,)),\"\")","v":""}]
[null,null,null,null,null,null,null,{"$f":"IFERROR(INDEX(#REF!,MATCH(E314,#REF!,)),\"\")","v":""}]
[null,null,null,null,null,null,null,{"$f":"IFERROR(INDEX(#REF!,MATCH(E315,#REF!,)),\"\")","v":""}]
[null,null,null,null,null,null,null,{"$f":"IFERROR(INDEX(#REF!,MATCH(E316,#REF!,)),\"\")","v":""}]
[null,null,null,null,null,null,null,{"$f":"IFERROR(INDEX(#REF!,MATCH(E317,#REF!,)),\"\")","v":""}]
[null,null,null,null,null,null,null,{"$f":"IFERROR(INDEX(#REF!,MATCH(E318,#REF!,)),\"\")","v":""}]
[null,null,null,null,null,null,null,{"$f":"IFERROR(INDEX(#REF!,MATCH(E319,#REF!,)),\"\")","v":""}]
[null,null,null,null,null,null,null,{"$f":"IFERROR(INDEX(#REF!,MATCH(E320,#REF!,)),\"\")","v":""}]
[null,null,null,null,null,null,null,{"$f":"IFERROR(INDEX(#REF!,MATCH(E321,#REF!,)),\"\")","v":""}]
[null,null,null,null,null,null,null,{"$f":"IFERROR(INDEX(#REF!,MATCH(E322,#REF!,)),\"\")","v":""}]
[null,null,null,null,null,null,null,{"$f":"IFERROR(INDEX(#REF!,MATCH(E323,#REF!,)),\"\")","v":""}]
[null,null,null,null,null,null,null,{"$f":"IFERROR(INDEX(#REF!,MATCH(E324,#REF!,)),\"\")","v":""}]
[null,null,null,null,null,null,null,{"$f":"IFERROR(INDEX(#REF!,MATCH(E325,#REF!,)),\"\")","v":""}]
[null,null,null,null,null,null,null,{"$f":"IFERROR(INDEX(#REF!,MATCH(E326,#REF!,)),\"\")","v":""}]
[null,null,null,null,null,null,null,{"$f":"IFERROR(INDEX(#REF!,MATCH(E327,#REF!,)),\"\")","v":""}]
[null,null,null,null,null,null,null,{"$f":"IFERROR(INDEX(#REF!,MATCH(E328,#REF!,)),\"\")","v":""}]
[null,null,null,null,null,null,null,{"$f":"IFERROR(INDEX(#REF!,MATCH(E329,#REF!,)),\"\")","v":""}]
[null,null,null,null,null,null,null,{"$f":"IFERROR(INDEX(#REF!,MATCH(E330,#REF!,)),\"\")","v":""}]
[null,null,null,null,null,null,null,{"$f":"IFERROR(INDEX(#REF!,MATCH(E331,#REF!,)),\"\")","v":""}]
[null,null,null,null,null,null,null,{"$f":"IFERROR(INDEX(#REF!,MATCH(E332,#REF!,)),\"\")","v":""}]
[null,null,null,null,null,null,null,{"$f":"IFERROR(INDEX(#REF!,MATCH(E333,#REF!,)),\"\")","v":""}]
[null,null,null,null,null,null,null,{"$f":"IFERROR(INDEX(#REF!,MATCH(E334,#REF!,)),\"\")","v":""}]
[null,null,null,null,null,null,null,{"$f":"IFERROR(INDEX(#REF!,MATCH(E335,#REF!,)),\"\")","v":""}]
[null,null,null,null,null,null,null,{"$f":"IFERROR(INDEX(#REF!,MATCH(E336,#REF!,)),\"\")","v":""}]
[null,null,null,null,null,null,null,{"$f":"IFERROR(INDEX(#REF!,MATCH(E337,#REF!,)),\"\")","v":""}]
[null,null,null,null,null,null,null,{"$f":"IFERROR(INDEX(#REF!,MATCH(E338,#REF!,)),\"\")","v":""}]
[null,null,null,null,null,null,null,{"$f":"IFERROR(INDEX(#REF!,MATCH(E339,#REF!,)),\"\")","v":""}]
[null,null,null,null,null,null,null,{"$f":"IFERROR(INDEX(#REF!,MATCH(E340,#REF!,)),\"\")","v":""}]
[null,null,null,null,null,null,null,{"$f":"IFERROR(INDEX(#REF!,MATCH(E341,#REF!,)),\"\")","v":""}]
[null,null,null,null,null,null,null,{"$f":"IFERROR(INDEX(#REF!,MATCH(E342,#REF!,)),\"\")","v":""}]
[null,null,null,null,null,null,null,{"$f":"IFERROR(INDEX(#REF!,MATCH(E343,#REF!,)),\"\")","v":""}]
[null,null,null,null,null,null,null,{"$f":"IFERROR(INDEX(#REF!,MATCH(E344,#REF!,)),\"\")","v":""}]
[null,null,null,null,null,null,null,{"$f":"IFERROR(INDEX(#REF!,MATCH(E345,#REF!,)),\"\")","v":""}]
[null,null,null,null,null,null,null,{"$f":"IFERROR(INDEX(#REF!,MATCH(E346,#REF!,)),\"\")","v":""}]
[null,null,null,null,null,null,null,{"$f":"IFERROR(INDEX(#REF!,MATCH(E347,#REF!,)),\"\")","v":""}]
[null,null,null,null,null,null,null,{"$f":"IFERROR(INDEX(#REF!,MATCH(E348,#REF!,)),\"\")","v":""}]
[null,null,null,null,null,null,null,{"$f":"IFERROR(INDEX(#REF!,MATCH(E349,#REF!,)),\"\")","v":""}]
[null,null,null,null,null,null,null,{"$f":"IFERROR(INDEX(#REF!,MATCH(E350,#REF!,)),\"\")","v":""}]
[null,null,null,null,null,null,null,{"$f":"IFERROR(INDEX(#REF!,MATCH(E351,#REF!,)),\"\")","v":""}]
[null,null,null,null,null,null,null,{"$f":"IFERROR(INDEX(#REF!,MATCH(E352,#REF!,)),\"\")","v":""}]
[null,null,null,null,null,null,null,{"$f":"IFERROR(INDEX(#REF!,MATCH(E353,#REF!,)),\"\")","v":""}]
[null,null,null,null,null,null,null,{"$f":"IFERROR(INDEX(#REF!,MATCH(E354,#REF!,)),\"\")","v":""}]
[null,null,null,null,null,null,null,{"$f":"IFERROR(INDEX(#REF!,MATCH(E355,#REF!,)),\"\")","v":""}]
[null,null,null,null,null,null,null,{"$f":"IFERROR(INDEX(#REF!,MATCH(E356,#REF!,)),\"\")","v":""}]
[null,null,null,null,null,null,null,{"$f":"IFERROR(INDEX(#REF!,MATCH(E357,#REF!,)),\"\")","v":""}]
[null,null,null,null,null,null,null,{"$f":"IFERROR(INDEX(#REF!,MATCH(E358,#REF!,)),\"\")","v":""}]
[null,null,null,null,null,null,null,{"$f":"IFERROR(INDEX(#REF!,MATCH(E359,#REF!,)),\"\")","v":""}]
[null,null,null,null,null,null,null,{"$f":"IFERROR(INDEX(#REF!,MATCH(E360,#REF!,)),\"\")","v":""}]
[null,null,null,null,null,null,null,{"$f":"IFERROR(INDEX(#REF!,MATCH(E361,#REF!,)),\"\")","v":""}]
[null,null,null,null,null,null,null,{"$f":"IFERROR(INDEX(#REF!,MATCH(E362,#REF!,)),\"\")","v":""}]
[null,null,null,null,null,null,null,{"$f":"IFERROR(INDEX(#REF!,MATCH(E363,#REF!,)),\"\")","v":""}]
[null,null,null,null,null,null,null,{"$f":"IFERROR(INDEX(#REF!,MATCH(E364,#REF!,)),\"\")","v":""}]
[null,null,null,null,null,null,null,{"$f":"IFERROR(INDEX(#REF!,MATCH(E365,#REF!,)),\"\")","v":""}]
[null,null,null,null,null,null,null,{"$f":"IFERROR(INDEX(#REF!,MATCH(E366,#REF!,)),\"\")","v":""}]
[null,null,null,null,null,null,null,{"$f":"IFERROR(INDEX(#REF!,MATCH(E367,#REF!,)),\"\")","v":""}]
[null,null,null,null,null,null,null,{"$f":"IFERROR(INDEX(#REF!,MATCH(E368,#REF!,)),\"\")","v":""}]
[null,null,null,null,null,null,null,{"$f":"IFERROR(INDEX(#REF!,MATCH(E369,#REF!,)),\"\")","v":""}]
[null,null,null,null,null,null,null,{"$f":"IFERROR(INDEX(#REF!,MATCH(E370,#REF!,)),\"\")","v":""}]
[null,null,null,null,null,null,null,{"$f":"IFERROR(INDEX(#REF!,MATCH(E371,#REF!,)),\"\")","v":""}]
[null,null,null,null,null,null,null,{"$f":"IFERROR(INDEX(#REF!,MATCH(E372,#REF!,)),\"\")","v":""}]
[null,null,null,null,null,null,null,{"$f":"IFERROR(INDEX(#REF!,MATCH(E373,#REF!,)),\"\")","v":""}]
[null,null,null,null,null,null,null,{"$f":"IFERROR(INDEX(#REF!,MATCH(E374,#REF!,)),\"\")","v":""}]
[null,null,null,null,null,null,null,{"$f":"IFERROR(INDEX(#REF!,MATCH(E375,#REF!,)),\"\")","v":""}]
[null,null,null,null,null,null,null,{"$f":"IFERROR(INDEX(#REF!,MATCH(E376,#REF!,)),\"\")","v":""}]
[null,null,null,null,null,null,null,{"$f":"IFERROR(INDEX(#REF!,MATCH(E377,#REF!,)),\"\")","v":""}]
[null,null,null,null,null,null,null,{"$f":"IFERROR(INDEX(#REF!,MATCH(E378,#REF!,)),\"\")","v":""}]
[null,null,null,null,null,null,null,{"$f":"IFERROR(INDEX(#REF!,MATCH(E379,#REF!,)),\"\")","v":""}]
[null,null,null,null,null,null,null,{"$f":"IFERROR(INDEX(#REF!,MATCH(E380,#REF!,)),\"\")","v":""}]
[null,null,null,null,null,null,null,{"$f":"IFERROR(INDEX(#REF!,MATCH(E381,#REF!,)),\"\")","v":""}]
[null,null,null,null,null,null,null,{"$f":"IFERROR(INDEX(#REF!,MATCH(E382,#REF!,)),\"\")","v":""}]
[null,null,null,null,null,null,null,{"$f":"IFERROR(INDEX(#REF!,MATCH(E383,#REF!,)),\"\")","v":""}]
[null,null,null,null,null,null,null,{"$f":"IFERROR(INDEX(#REF!,MATCH(E384,#REF!,)),\"\")","v":""}]
[null,null,null,null,null,null,null,{"$f":"IFERROR(INDEX(#REF!,MATCH(E385,#REF!,)),\"\")","v":""}]
[null,null,null,null,null,null,null,{"$f":"IFERROR(INDEX(#REF!,MATCH(E386,#REF!,)),\"\")","v":""}]
[null,null,null,null,null,null,null,{"$f":"IFERROR(INDEX(#REF!,MATCH(E387,#REF!,)),\"\")","v":""}]
[null,null,null,null,null,null,null,{"$f":"IFERROR(INDEX(#REF!,MATCH(E388,#REF!,)),\"\")","v":""}]
[null,null,null,null,null,null,null,{"$f":"IFERROR(INDEX(#REF!,MATCH(E389,#REF!,)),\"\")","v":""}]
[null,null,null,null,null,null,null,{"$f":"IFERROR(INDEX(#REF!,MATCH(E390,#REF!,)),\"\")","v":""}]
[null,null,null,null,null,null,null,{"$f":"IFERROR(INDEX(#REF!,MATCH(E391,#REF!,)),\"\")","v":""}]
[null,null,null,null,null,null,null,{"$f":"IFERROR(INDEX(#REF!,MATCH(E392,#REF!,)),\"\")","v":""}]
[null,null,null,null,null,null,null,{"$f":"IFERROR(INDEX(#REF!,MATCH(E393,#REF!,)),\"\")","v":""}]
[null,null,null,null,null,null,null,{"$f":"IFERROR(INDEX(#REF!,MATCH(E394,#REF!,)),\"\")","v":""}]
[null,null,null,null,null,null,null,{"$f":"IFERROR(INDEX(#REF!,MATCH(E395,#REF!,)),\"\")","v":""}]
[null,null,null,null,null,null,null,{"$f":"IFERROR(INDEX(#REF!,MATCH(E396,#REF!,)),\"\")","v":""}]
[null,null,null,null,null,null,null,{"$f":"IFERROR(INDEX(#REF!,MATCH(E397,#REF!,)),\"\")","v":""}]
[null,null,null,null,null,null,null,{"$f":"IFERROR(INDEX(#REF!,MATCH(E398,#REF!,)),\"\")","v":""}]
[null,null,null,null,null,null,null,{"$f":"IFERROR(INDEX(#REF!,MATCH(E399,#REF!,)),\"\")","v":""}]
[null,null,null,null,null,null,null,{"$f":"IFERROR(INDEX(#REF!,MATCH(E400,#REF!,)),\"\")","v":""}]
[null,null,null,null,null,null,null,{"$f":"IFERROR(INDEX(#REF!,MATCH(E401,#REF!,)),\"\")","v":""}]
[null,null,null,null,null,null,null,{"$f":"IFERROR(INDEX(#REF!,MATCH(E402,#REF!,)),\"\")","v":""}]
[null,null,null,null,null,null,null,{"$f":"IFERROR(INDEX(#REF!,MATCH(E403,#REF!,)),\"\")","v":""}]
[null,null,null,null,null,null,null,{"$f":"IFERROR(INDEX(#REF!,MATCH(E404,#REF!,)),\"\")","v":""}]
[null,null,null,null,null,null,null,{"$f":"IFERROR(INDEX(#REF!,MATCH(E405,#REF!,)),\"\")","v":""}]
[null,null,null,null,null,null,null,{"$f":"IFERROR(INDEX(#REF!,MATCH(E406,#REF!,)),\"\")","v":""}]
[null,null,null,null,null,null,null,{"$f":"IFERROR(INDEX(#REF!,MATCH(E407,#REF!,)),\"\")","v":""}]
[null,null,null,null,null,null,null,{"$f":"IFERROR(INDEX(#REF!,MATCH(E408,#REF!,)),\"\")","v":""}]
[null,null,null,null,null,null,null,{"$f":"IFERROR(INDEX(#REF!,MATCH(E409,#REF!,)),\"\")","v":""}]
[null,null,null,null,null,null,null,{"$f":"IFERROR(INDEX(#REF!,MATCH(E410,#REF!,)),\"\")","v":""}]
[null,null,null,null,null,null,null,{"$f":"IFERROR(INDEX(#REF!,MATCH(E411,#REF!,)),\"\")","v":""}]
[null,null,null,null,null,null,null,{"$f":"IFERROR(INDEX(#REF!,MATCH(E412,#REF!,)),\"\")","v":""}]
[null,null,null,null,null,null,null,{"$f":"IFERROR(INDEX(#REF!,MATCH(E413,#REF!,)),\"\")","v":""}]
[null,null,null,null,null,null,null,{"$f":"IFERROR(INDEX(#REF!,MATCH(E414,#REF!,)),\"\")","v":""}]
[null,null,null,null,null,null,null,{"$f":"IFERROR(INDEX(#REF!,MATCH(E415,#REF!,)),\"\")","v":""}]
[null,null,null,null,null,null,null,{"$f":"IFERROR(INDEX(#REF!,MATCH(E416,#REF!,)),\"\")","v":""}]
[null,null,null,null,null,null,null,{"$f":"IFERROR(INDEX(#REF!,MATCH(E417,#REF!,)),\"\")","v":""}]
[null,null,null,null,null,null,null,{"$f":"IFERROR(INDEX(#REF!,MATCH(E418,#REF!,)),\"\")","v":""}]
[null,null,null,null,null,null,null,{"$f":"IFERROR(INDEX(#REF!,MATCH(E419,#REF!,)),\"\")","v":""}]
[null,null,null,null,null,null,null,{"$f":"IFERROR(INDEX(#REF!,MATCH(E420,#REF!,)),\"\")","v":""}]
[null,null,null,null,null,null,null,{"$f":"IFERROR(INDEX(#REF!,MATCH(E421,#REF!,)),\"\")","v":""}]
[null,null,null,null,null,null,null,{"$f":"IFERROR(INDEX(#REF!,MATCH(E422,#REF!,)),\"\")","v":""}]
[null,null,null,null,null,null,null,{"$f":"IFERROR(INDEX(#REF!,MATCH(E423,#REF!,)),\"\")","v":""}]
[null,null,null,null,null,null,null,{"$f":"IFERROR(INDEX(#REF!,MATCH(E424,#REF!,)),\"\")","v":""}]
[null,null,null,null,null,null,null,{"$f":"IFERROR(INDEX(#REF!,MATCH(E425,#REF!,)),\"\")","v":""}]
[null,null,null,null,null,null,null,{"$f":"IFERROR(INDEX(#REF!,MATCH(E426,#REF!,)),\"\")","v":""}]
[null,null,null,null,null,null,null,{"$f":"IFERROR(INDEX(#REF!,MATCH(E427,#REF!,)),\"\")","v":""}]
[null,null,null,null,null,null,null,{"$f":"IFERROR(INDEX(#REF!,MATCH(E428,#REF!,)),\"\")","v":""}]
[null,null,null,null,null,null,null,{"$f":"IFERROR(INDEX(#REF!,MATCH(E429,#REF!,)),\"\")","v":""}]
[null,null,null,null,null,null,null,{"$f":"IFERROR(INDEX(#REF!,MATCH(E430,#REF!,)),\"\")","v":""}]
[null,null,null,null,null,null,null,{"$f":"IFERROR(INDEX(#REF!,MATCH(E431,#REF!,)),\"\")","v":""}]
[null,null,null,null,null,null,null,{"$f":"IFERROR(INDEX(#REF!,MATCH(E432,#REF!,)),\"\")","v":""}]
[null,null,null,null,null,null,null,{"$f":"IFERROR(INDEX(#REF!,MATCH(E433,#REF!,)),\"\")","v":""}]
[null,null,null,null,null,null,null,{"$f":"IFERROR(INDEX(#REF!,MATCH(E434,#REF!,)),\"\")","v":""}]
[null,null,null,null,null,null,null,{"$f":"IFERROR(INDEX(#REF!,MATCH(E435,#REF!,)),\"\")","v":""}]
[null,null,null,null,null,null,null,{"$f":"IFERROR(INDEX(#REF!,MATCH(E436,#REF!,)),\"\")","v":""}]
[null,null,null,null,null,null,null,{"$f":"IFERROR(INDEX(#REF!,MATCH(E437,#REF!,)),\"\")","v":""}]
[null,null,null,null,null,null,null,{"$f":"IFERROR(INDEX(#REF!,MATCH(E438,#REF!,)),\"\")","v":""}]
[null,null,null,null,null,null,null,{"$f":"IFERROR(INDEX(#REF!,MATCH(E439,#REF!,)),\"\")","v":""}]
[null,null,null,null,null,null,null,{"$f":"IFERROR(INDEX(#REF!,MATCH(E440,#REF!,)),\"\")","v":""}]
[null,null,null,null,null,null,null,{"$f":"IFERROR(INDEX(#REF!,MATCH(E441,#REF!,)),\"\")","v":""}]
[null,null,null,null,null,null,null,{"$f":"IFERROR(INDEX(#REF!,MATCH(E442,#REF!,)),\"\")","v":""}]
[null,null,null,null,null,null,null,{"$f":"IFERROR(INDEX(#REF!,MATCH(E443,#REF!,)),\"\")","v":""}]
[null,null,null,null,null,null,null,{"$f":"IFERROR(INDEX(#REF!,MATCH(E444,#REF!,)),\"\")","v":""}]
[null,null,null,null,null,null,null,{"$f":"IFERROR(INDEX(#REF!,MATCH(E445,#REF!,)),\"\")","v":""}]
[null,null,null,null,null,null,null,{"$f":"IFERROR(INDEX(#REF!,MATCH(E446,#REF!,)),\"\")","v":""}]
[null,null,null,null,null,null,null,{"$f":"IFERROR(INDEX(#REF!,MATCH(E447,#REF!,)),\"\")","v":""}]
[null,null,null,null,null,null,null,{"$f":"IFERROR(INDEX(#REF!,MATCH(E448,#REF!,)),\"\")","v":""}]
[null,null,null,null,null,null,null,{"$f":"IFERROR(INDEX(#REF!,MATCH(E449,#REF!,)),\"\")","v":""}]
[null,null,null,null,null,null,null,{"$f":"IFERROR(INDEX(#REF!,MATCH(E450,#REF!,)),\"\")","v":""}]
[null,null,null,null,null,null,null,{"$f":"IFERROR(INDEX(#REF!,MATCH(E451,#REF!,)),\"\")","v":""}]
[null,null,null,null,null,null,null,{"$f":"IFERROR(INDEX(#REF!,MATCH(E452,#REF!,)),\"\")","v":""}]
[null,null,null,null,null,null,null,{"$f":"IFERROR(INDEX(#REF!,MATCH(E453,#REF!,)),\"\")","v":""}]
[null,null,null,null,null,null,null,{"$f":"IFERROR(INDEX(#REF!,MATCH(E454,#REF!,)),\"\")","v":""}]
[null,null,null,null,null,null,null,{"$f":"IFERROR(INDEX(#REF!,MATCH(E455,#REF!,)),\"\")","v":""}]
[null,null,null,null,null,null,null,{"$f":"IFERROR(INDEX(#REF!,MATCH(E456,#REF!,)),\"\")","v":""}]
[null,null,null,null,null,null,null,{"$f":"IFERROR(INDEX(#REF!,MATCH(E457,#REF!,)),\"\")","v":""}]
[null,null,null,null,null,null,null,{"$f":"IFERROR(INDEX(#REF!,MATCH(E458,#REF!,)),\"\")","v":""}]
[null,null,null,null,null,null,null,{"$f":"IFERROR(INDEX(#REF!,MATCH(E459,#REF!,)),\"\")","v":""}]
[null,null,null,null,null,null,null,{"$f":"IFERROR(INDEX(#REF!,MATCH(E460,#REF!,)),\"\")","v":""}]
[null,null,null,null,null,null,null,{"$f":"IFERROR(INDEX(#REF!,MATCH(E461,#REF!,)),\"\")","v":""}]
[null,null,null,null,null,null,null,{"$f":"IFERROR(INDEX(#REF!,MATCH(E462,#REF!,)),\"\")","v":""}]
[null,null,null,null,null,null,null,{"$f":"IFERROR(INDEX(#REF!,MATCH(E463,#REF!,)),\"\")","v":""}]
[null,null,null,null,null,null,null,{"$f":"IFERROR(INDEX(#REF!,MATCH(E464,#REF!,)),\"\")","v":""}]
[null,null,null,null,null,null,null,{"$f":"IFERROR(INDEX(#REF!,MATCH(E465,#REF!,)),\"\")","v":""}]
[null,null,null,null,null,null,null,{"$f":"IFERROR(INDEX(#REF!,MATCH(E466,#REF!,)),\"\")","v":""}]
[null,null,null,null,null,null,null,{"$f":"IFERROR(INDEX(#REF!,MATCH(E467,#REF!,)),\"\")","v":""}]
[null,null,null,null,null,null,null,{"$f":"IFERROR(INDEX(#REF!,MATCH(E468,#REF!,)),\"\")","v":""}]
[null,null,null,null,null,null,null,{"$f":"IFERROR(INDEX(#REF!,MATCH(E469,#REF!,)),\"\")","v":""}]
[null,null,null,null,null,null,null,{"$f":"IFERROR(INDEX(#REF!,MATCH(E470,#REF!,)),\"\")","v":""}]
[null,null,null,null,null,null,null,{"$f":"IFERROR(INDEX(#REF!,MATCH(E471,#REF!,)),\"\")","v":""}]
[null,null,null,null,null,null,null,{"$f":"IFERROR(INDEX(#REF!,MATCH(E472,#REF!,)),\"\")","v":""}]
[null,null,null,null,null,null,null,{"$f":"IFERROR(INDEX(#REF!,MATCH(E473,#REF!,)),\"\")","v":""}]
[null,null,null,null,null,null,null,{"$f":"IFERROR(INDEX(#REF!,MATCH(E474,#REF!,)),\"\")","v":""}]
[null,null,null,null,null,null,null,{"$f":"IFERROR(INDEX(#REF!,MATCH(E475,#REF!,)),\"\")","v":""}]
[null,null,null,null,null,null,null,{"$f":"IFERROR(INDEX(#REF!,MATCH(E476,#REF!,)),\"\")","v":""}]
[null,null,null,null,null,null,null,{"$f":"IFERROR(INDEX(#REF!,MATCH(E477,#REF!,)),\"\")","v":""}]
[null,null,null,null,null,null,null,{"$f":"IFERROR(INDEX(#REF!,MATCH(E478,#REF!,)),\"\")","v":""}]
[null,null,null,null,null,null,null,{"$f":"IFERROR(INDEX(#REF!,MATCH(E479,#REF!,)),\"\")","v":""}]
[null,null,null,null,null,null,null,{"$f":"IFERROR(INDEX(#REF!,MATCH(E480,#REF!,)),\"\")","v":""}]
[null,null,null,null,null,null,null,{"$f":"IFERROR(INDEX(#REF!,MATCH(E481,#REF!,)),\"\")","v":""}]
[null,null,null,null,null,null,null,{"$f":"IFERROR(INDEX(#REF!,MATCH(E482,#REF!,)),\"\")","v":""}]
[null,null,null,null,null,null,null,{"$f":"IFERROR(INDEX(#REF!,MATCH(E483,#REF!,)),\"\")","v":""}]
[null,null,null,null,null,null,null,{"$f":"IFERROR(INDEX(#REF!,MATCH(E484,#REF!,)),\"\")","v":""}]
[null,null,null,null,null,null,null,{"$f":"IFERROR(INDEX(#REF!,MATCH(E485,#REF!,)),\"\")","v":""}]
[null,null,null,null,null,null,null,{"$f":"IFERROR(INDEX(#REF!,MATCH(E486,#REF!,)),\"\")","v":""}]
[null,null,null,null,null,null,null,{"$f":"IFERROR(INDEX(#REF!,MATCH(E487,#REF!,)),\"\")","v":""}]
[null,null,null,null,null,null,null,{"$f":"IFERROR(INDEX(#REF!,MATCH(E488,#REF!,)),\"\")","v":""}]
[null,null,null,null,null,null,null,{"$f":"IFERROR(INDEX(#REF!,MATCH(E489,#REF!,)),\"\")","v":""}]
[null,null,null,null,null,null,null,{"$f":"IFERROR(INDEX(#REF!,MATCH(E490,#REF!,)),\"\")","v":""}]
[null,null,null,null,null,null,null,{"$f":"IFERROR(INDEX(#REF!,MATCH(E491,#REF!,)),\"\")","v":""}]
[null,null,null,null,null,null,null,{"$f":"IFERROR(INDEX(#REF!,MATCH(E492,#REF!,)),\"\")","v":""}]
[null,null,null,null,null,null,null,{"$f":"IFERROR(INDEX(#REF!,MATCH(E493,#REF!,)),\"\")","v":""}]
[null,null,null,null,null,null,null,{"$f":"IFERROR(INDEX(#REF!,MATCH(E494,#REF!,)),\"\")","v":""}]
[null,null,null,null,null,null,null,{"$f":"IFERROR(INDEX(#REF!,MATCH(E495,#REF!,)),\"\")","v":""}]
[null,null,null,null,null,null,null,{"$f":"IFERROR(INDEX(#REF!,MATCH(E496,#REF!,)),\"\")","v":""}]
[null,null,null,null,null,null,null,{"$f":"IFERROR(INDEX(#REF!,MATCH(E497,#REF!,)),\"\")","v":""}]
[null,null,null,null,null,null,null,{"$f":"IFERROR(INDEX(#REF!,MATCH(E498,#REF!,)),\"\")","v":""}]
[null,null,null,null,null,null,null,{"$f":"IFERROR(INDEX(#REF!,MATCH(E499,#REF!,)),\"\")","v":""}]
[null,null,null,null,null,null,null,{"$f":"IFERROR(INDEX(#REF!,MATCH(E500,#REF!,)),\"\")","v":""}]